Cogmind - Beta 17.1 @@@ ROGUE MODE // 2026.08.31 @ 22:20:59 Player: UnderDoug Result: Destroyed by exploding Fusion Modulator Performance ------------- Evolutions (4) 2000 Regions Visited (4) 800 Robots Destroyed (37) 185 Value Destroyed (1160) 1160 Prototype IDs (12) 240 Alien Tech Used (0) 0 Bonus (800) 800 TOTAL SCORE: 5185 Bonus ------- Registered with UFD 300 Met Optimus in HQ 500 Cogmind --------- Core Integrity 0/850 Matter 298/300 Energy 100/100 System Corruption 4% Temperature Cool (12) Movement Core (550) Ox10 Location -6/Factory Parts ------- > --- POWER (3) -------- (None) > --- PROPULSION (4) --- (None) > --- UTILITY (5) ------ Scrap Suit Large Storage Unit Terrain Scan Processor > --- WEAPON (3) ------- Autogun Falx > --- INVENTORY (15) --- Light Treads Remote Datajack Mace Falx DRS Beacon (Ready) Peak State ------------ > --- POWER ------------ Ion Engine > --- PROPULSION ------- Improved Treads Improved Treads Improved Treads Improved Treads > --- UTILITY ---------- Scrap Suit Large Storage Unit Experimental Sensor Array Improved Terrain Scanner > --- WEAPON ----------- Spread Laser Spread Laser Mace > --- INVENTORY -------- Scrap Suit Cooling System Structural Scanner Terrain Scan Processor ECM Suite Medium Laser CPS Tube DRS Beacon [Rating: 38] Favorites ----------- Power Ion Engine Engine Ion Engine Power Core Micro Nuclear Core Propulsion Improved Treads Treads Improved Treads Wheel Compact Wheel Hover Unit Gravmag System Utility Structural Scanner Device Structural Scanner Storage Large Storage Unit Processor Terrain Scan Processor Protection Improved Light Armor Plating Weapon Spread Laser Energy Gun Spread Laser Ballistic Gun Light Assault Rifle Ballistic Cannon Heavy Flak Cannon Special Weapon CPS Tube Impact Weapon Mace Slashing Weapon Falx Build | -11 -10 -10 -9 -6 ------- Run | Yrd Mat Sub Scr Fac Slots Evolved 8 | . . . . 8 Power 2 | . . . . 2 Propulsion 2 | . . . . 2 Utility 3 | . . . . 3 Weapon 1 | . . . . 1 Parts Attached 41 | 6 9 . 4 22 Power 5 | 1 3 . . 1 Engine 4 | 1 3 . . . Core 1 | . . . . 1 Reactor . | . . . . . Propulsion 14 | 2 2 . . 10 Treads 5 | . 2 . . 3 Leg . | . . . . . Wheel 7 | 2 . . . 5 Hover 2 | . . . . 2 Flight . | . . . . . Utility 12 | 1 2 . 3 6 Device 8 | . 2 . 2 4 Storage 2 | 1 . . 1 . Processor 1 | . . . . 1 Hackware . | . . . . . Protection 1 | . . . . 1 Artifact . | . . . . . Weapon 10 | 2 2 . 1 5 Energy Gun 4 | 2 1 . . 1 Energy Cannon . | . . . . . Ballistic Gun 1 | . 1 . . . Ballistic Cannon 1 | . . . . 1 Launcher . | . . . . . Special Weapon 1 | . . . . 1 Impact Weapon 1 | . . . 1 . Slashing Weapon 2 | . . . . 2 Piercing Weapon . | . . . . . Special Melee Weapon . | . . . . . Unidentified Prototypes . | . . . . . Parts Lost 31 | . 3 . . 28 Power 4 | . 2 . . 2 Propulsion 11 | . . . . 11 Utility 7 | . . . . 7 Weapon 9 | . 1 . . 8 Highest Loss Streak 6 | . 2 . . 6 To Critical Strikes . | . . . . . Average Backups 5 | 1 4 5 5 5 Power . | . . . . . Propulsion 1 | . 1 2 1 . Utility 1 | . . . 1 2 Weapon 1 | . 1 2 1 1 Tool/Special . | . . . . . Unused Backups 7 | . 4 . 1 2 Power . | . . . . . Propulsion 2 | . 2 . . . Utility . | . . . . . Weapon 3 | . 2 . . 1 Tool/Special 2 | . . . 1 1 Average Slot Usage (%) 90 | . 93 100 100 62 Engine 11 | . 13 14 14 1 Treads 20 | . 6 28 28 11 Wheel 4 | . 20 . . 5 Device 21 | . 20 28 25 13 Storage 3 | . 4 . 2 6 Energy Gun 18 | . 20 28 20 8 Ballistic Gun 1 | . 7 . . . Impact Weapon 5 | . . . 7 4 Peak Build Rating 38 | 6 10 10 20 38 Average Rating 14 | 4 7 10 11 28 On Entrance 8 | . 6 10 10 15 Avg Prop Armor Cover (%) 5 | . . . . 5 Naked Turns . | . . . . . Heaviest Build 40 | 14 15 13 31 40 Greatest Support 92 | 32 46 46 46 92 Greatest Overweight (x) 12 | . . . . 12 Average Overweight (x) . | . . . . . Largest Inventory Capacity 15 | 8 8 5 15 15 Average Capacity 8 | 7 5 5 6 15 Most Carried 13 | 4 6 5 13 12 Average Carried 5 | 1 4 5 5 7 Final Capacity 15 | 8 5 5 15 15 Final Carried 13 | 4 5 5 13 5 Scrap Suit Usage (%) 21 | . . . . 97 Parts Cannibalized 1 | . . . . 1 Class Distribution -------------------- 78% | Mutant 17% | Infiltrator-Mutant 3% | Scavenger-Mutant Dominant Class ---------------- Infiltrator-Mutant | -10/Materials Infiltrator-Mutant | -10/Subcaves Mutant | -9/Scraptown Mutant | -6/Factory Resources | -11 -10 -10 -9 -6 ----------- Run | Yrd Mat Sub Scr Fac Matter Collected 886 | 231 148 29 71 407 Remotely . | . . . . . Salvage Created 1354 | . 440 54 . 860 Parts 73 | . 35 9 . 29 Haulers Intercepted . | . . . . . Recyclers Shooed 4 | . 1 . . 3 Parts Field Recycled . | . . . . . Retrieved Matter . | . . . . . Parts Self-Destructed 9 | . . 9 . . Prevented . | . . . . . Parts Restored . | . . . . . Kills | -11 -10 -10 -9 -6 ------- Run | Yrd Mat Sub Scr Fac Combat Hostiles Destroyed 28 | . 9 4 . 15 Melee 6 | . . . . 6 Guns 15 | . 9 4 . 2 Cannons 5 | . . . . 5 Classes Destroyed 8 | . 6 . . 2 Worker 1 | . 1 . . . Builder 2 | . 1 . . 1 Recycler 4 | . 1 . . 3 Watcher 2 | . 2 . . . Swarmer 9 | . 3 4 . 2 Grunt 9 | . 6 . . 3 Sentry 5 | . . . . 5 Programmer 5 | . . . . 5 Best Kill Streak 5 | . 5 2 . 3 Combat Bots Only 4 | . 4 2 . 2 Max Kills in Single Turn 3 | . 3 2 . 1 Gunslinging 1 | . . 1 . . Exploded . | . . . . . Melee 1 | . . . . 1 Uniques/NPCs Destroyed . | . . . . . Combat | -11 -10 -10 -9 -6 -------- Run | Yrd Mat Sub Scr Fac Hostile Shots Fired 568 | . 54 15 . 499 Missed 177 | . 20 4 . 153 Hits 391 | . 34 11 . 346 Projectile 391 | . 34 11 . 346 Critical Strikes 7 | . . . . 7 Damage Taken 4557 | . 418 79 . 4060 Core 1040 | . 82 11 . 947 Absorbed by Shields . | . . . . . Regen/Repaired (Parts) 76 | . 70 . . 6 Core Remaining (%) 81 | 100 . . 62 . Volleys Fired 96 | . 39 5 . 52 Largest 2 | . 2 2 . 2 Hottest 130 | . 90 115 . 130 Shots Fired 173 | . 74 10 . 89 Gun 153 | . 74 10 . 69 Cannon 20 | . . . . 20 Launcher . | . . . . . Special . | . . . . . Kinetic 42 | . 19 . . 23 Thermal 104 | . 39 10 . 55 Explosive . | . . . . . Electromagnetic 27 | . 16 . . 11 Robot Hit Streak 16 | . 6 4 . 16 Robot Miss Streak 10 | . 4 4 . 10 Penetration Max . | . . . . . Secondary Targets 3 | . 2 1 . . Max Gunslinging Chain 1 | . 1 1 . . Shots Hit Robots 153 | . 36 6 . 111 Core Hits 113 | . 22 6 . 85 Critical Kills . | . . . . . Critical Parts Destroyed 3 | . . . . 3 Critical Strikes 8 | . 3 . . 5 Burn 3 | . 2 . . 1 Corrupt 1 | . 1 . . . Smash 4 | . . . . 4 Melee Attacks 55 | . . . . 55 Impact 33 | . . . . 33 Slashing 22 | . . . . 22 Piercing . | . . . . . Sneak Attacks 3 | . . . . 3 Combat Hostiles . | . . . . . Follow-up Attacks 1 | . . . . 1 Damage Inflicted 3404 | . 690 62 . 2652 Guns 1246 | . 432 62 . 752 Cannons 487 | . . . . 487 Explosions 258 | . 258 . . . Melee 1410 | . . . . 1410 Ramming 3 | . . . . 3 Kinetic 638 | . 105 . . 533 Thermal 999 | . 250 62 . 687 Explosive 258 | . 258 . . . Electromagnetic 96 | . 77 . . 19 Impact 816 | . . . . 816 Slashing 594 | . . . . 594 Piercing . | . . . . . Highest Corruption 4 | . 1 1 . 4 Average Corruption 2 | . 1 1 . 3 Corruption Purged . | . . . . . Corruption Blocked . | . . . . . Effects 28 | . 8 1 . 19 Message Errors 5 | . 4 . . 1 Matter Fused 13 | . 2 1 . 10 Heat Flow Errors 3 | . 1 . . 2 Energy Discharges 2 | . 1 . . 1 Data Loss (minor) 4 | . . . . 4 Alerts 1 | . . . . 1 Overload Shots . | . . . . . Overflow Damage 326 | . 12 . . 314 Projectiles . | . . . . . Explosions 12 | . 12 . . . Melee 314 | . . . . 314 Knockbacks 7 | . . . . 7 Impact 2 | . . . . 2 Kinetic 5 | . . . . 5 Secondary . | . . . . . Self-Inflicted Damage 56 | . 56 . . . Shots 1 | . 1 . . . Rammed 1 | . . . . 1 Targets Rammed 1 | . . . . 1 Kicked . | . . . . . Crushed . | . . . . . Highest Temperature 210 | . 210 . . 188 Average Temperature 54 | . 58 . . 48 Received Heat Transfer 1083 | . 135 30 . 918 Siege Activations . | . . . . . Martial Activations . | . . . . . Shielding Activations . | . . . . . Robots Disrupted . | . . . . . Combat Hostiles . | . . . . . Robots Corrupted 2 | . . . . 2 Combat Hostiles 1 | . . . . 1 Parts Fried 3 | . . . . 3 Impact Corruptions 7 | . . . . 7 Robots Melted 1 | . . . . 1 Combat Hostiles 1 | . . . . 1 Parts Melted 3 | . . . . 3 Heat Transferred 2121 | . 888 136 . 1097 Parts Sabotaged . | . . . . . Parts Stolen . | . . . . . Parts Stripped . | . . . . . Power Chain Reactions . | . . . . . Alert | -11 -10 -10 -9 -6 ------- Run | Yrd Mat Sub Scr Fac Maximum Alert Level . | . . . . . Low Security (%) 100 | 100 100 . . 100 Level 1 . | . . . . . Level 2 . | . . . . . Level 3 . | . . . . . Level 4 . | . . . . . Level 5 . | . . . . . High Security . | . . . . . Max Security . | . . . . . Peak Influence 161 | . 92 . . 161 Initial . | . . . . . Average 29 | . 20 . . 38 Influence Increases 1028 | . 308 80 . 640 Destroy 0b10 Robot/C 560 | . 180 80 . 300 Destroy 0b10 Robot/NC 45 | . 25 . . 20 Destroy Leader 154 | . 44 . . 110 Successful Hack 17 | . 17 . . . Disable Machine 15 | . 15 . . . Destroy Structure 12 | . 12 . . . Partial Spotted 30 | . . . . 30 Lose Combat Pursuer 195 | . 15 . . 180 Influence Decreases 868 | . 308 80 . 480 Time Decay 615 | . 278 80 . 257 Lost Part 253 | . 30 . . 223 Squads Dispatched 8 | . 2 . . 6 Investigation . | . . . . . Extermination 2 | . . . . 2 Reinforcement 3 | . 2 . . 1 Assault . | . . . . . Garrison 3 | . . . . 3 Intercept . | . . . . . Searches Triggered . | . . . . . Construction Impeded . | . . . . . Haulers Reinforced . | . . . . . Active Scanning Responses . | . . . . . Cargo Convoy Interrupts . | . . . . . Stealth | -11 -10 -10 -9 -6 --------- Run | Yrd Mat Sub Scr Fac Distress Signals 5 | . 2 . . 3 Communications Jammed . | . . . . . Distress Signals . | . . . . . Times Spotted 63 | . 21 7 . 35 Peak Tracking Total 6 | . 5 6 . 6 Tactical Retreats 11 | . 4 2 . 5 ECM-based Alert Blocks 16 | . 4 12 . . Traps | -11 -10 -10 -9 -6 ------- Run | Yrd Mat Sub Scr Fac Traps Triggered 1 | . 1 . . . Indirectly . | . . . . . Trap Hack Attempts . | . . . . . Triggered . | . . . . . Disarmed . | . . . . . Reprogrammed . | . . . . . Reused . | . . . . . Traps Extracted . | . . . . . Installed . | . . . . . Triggered . | . . . . . Machines | -11 -10 -10 -9 -6 ---------- Run | Yrd Mat Sub Scr Fac Machines Disabled 1 | . 1 . . . Max in Single Turn 1 | . 1 . . . Machines Repaired . | . . . . . Machines Dismantled . | . . . . . Machines Sabotaged . | . . . . . Overloaded Fab Kills . | . . . . . Hacking | -11 -10 -10 -9 -6 --------- Run | Yrd Mat Sub Scr Fac Machines Accessed 15 | . 8 . 7 . Terminals 5 | . 5 . . . Fabricators . | . . . . . Repair Stations 1 | . 1 . . . Recycling Units 2 | . 2 . . . Scanalyzers . | . . . . . Garrison Access . | . . . . . Total Hacks 50 | . 20 . 30 . Successful 43 | . 13 . 30 . Failed 7 | . 7 . . . Catastrophic 1 | . 1 . . . Database Lockouts . | . . . . . Manual . | . . . . . Terminals 12 | . 12 . . . Fabricators . | . . . . . Repair Stations 6 | . 6 . . . Recycling Units 2 | . 2 . . . Scanalyzers . | . . . . . Garrison Access . | . . . . . Terminal Hacks 35 | . 5 . 30 . Record 30 | . 1 . 29 . Robot Analysis 1 | . 1 . . . Registered Components 1 | . 1 . . . Zone Layout 2 | . 2 . . . Proto ID Catalog 1 | . . . 1 . Fabricator Hacks . | . . . . . Repair Station Hacks 6 | . 6 . . . Scan Component 3 | . 3 . . . Repair 3 | . 3 . . . Recycling Unit Hacks 2 | . 2 . . . Report Inventory 2 | . 2 . . . Scanalyzer . | . . . . . Garrison Access Hacks . | . . . . . Unauthorized Hacks . | . . . . . Terminals . | . . . . . Fabricators . | . . . . . Repair Stations . | . . . . . Recycling Units . | . . . . . Scanalyzers . | . . . . . Garrison Access . | . . . . . Data Cores Recovered . | . . . . . Used . | . . . . . Hacking Detections 5 | . 5 . . . Full Trace Events . | . . . . . Feedback Events . | . . . . . Feedback Blocked . | . . . . . Robot Schematics Acquired . | . . . . . Robots Built . | . . . . . Authchips . | . . . . . Time . | . . . . . Total Robot Build Rating . | . . . . . Part Schematics Acquired . | . . . . . Parts Built . | . . . . . Authchips . | . . . . . Time . | . . . . . Total Part Build Rating . | . . . . . Part Studies Acquired . | . . . . . Parts Repaired 3 | . 3 . . . Time 78 | . 78 . . . Parts Recycled . | . . . . . Recycled Matter . | . . . . . Retrieved Matter . | . . . . . Retrieved Components . | . . . . . Parts Scanalyzed . | . . . . . Part Schematics Acquired . | . . . . . Parts Damaged . | . . . . . Bothacking | -11 -10 -10 -9 -6 ------------ Run | Yrd Mat Sub Scr Fac Used RIF Installer . | . . . . . Robots Hacked . | . . . . . Non-combat . | . . . . . Combat . | . . . . . Robot Hacks Applied . | . . . . . Relay Couplers Released 3 | . . . . 3 Programmers 3 | . . . . 3 Fabnet Peak Effective % . | . . . . . Robots Rewired . | . . . . . Allies Hacked . | . . . . . Hacks Repelled . | . . . . . Allies | -11 -10 -10 -9 -6 -------- Run | Yrd Mat Sub Scr Fac Total Allies . | . . . . . Largest Group . | . . . . . Highest-Rated Group . | . . . . . Highest-Rated Ally . | . . . . . Initial UFD Resources 24 | . . . . 24 Total Orders . | . . . . . Ally Attacks . | . . . . . Total Damage . | . . . . . Kills . | . . . . . Allies Corrupted . | . . . . . Allies Melted . | . . . . . Intel | -11 -10 -10 -9 -6 ------- Run | Yrd Mat Sub Scr Fac Active Infowar (turns) 5518 | . 812 216 3724 766 Sensors 3265 | . . . 2833 432 Terrain 276 | . . . . 276 Structural 5184 | . 768 216 3724 476 ECM 1188 | . 812 216 145 15 Robot Analysis Total 1 | . 1 . . . Derelict Logs Recovered 1 | . . 1 . . Drone Launches . | . . . . . Drone Recoveries . | . . . . . Exploration | -11 -10 -10 -9 -6 ------------- Run | Yrd Mat Sub Scr Fac Turns Passed 6499 | 43 1116 216 3724 1400 Spaces Moved 3482 | 31 550 126 2207 568 Core 16 | 1 . . . 15 Treads 2649 | . 41 126 2207 275 Legs . | . . . . . Wheels 797 | 30 509 . . 258 Hover 20 | . . . . 20 Flight . | . . . . . Fastest Speed 50 | 50 100 160 160 100 Average Speed 149 | 98 104 160 160 149 Slowest Speed 650 | 100 160 160 160 650 Overloaded Moves . | . . . . . Propulsion Burnouts . | . . . . . Robots Hopped . | . . . . . Potential Cave-ins . | . . . . . Cave-ins Triggered . | . . . . . Exploration Rate (%) 39 | 3 79 10 93 13 Regions Visited 4 Branch Regions 2 Pre-discovered Areas . | . . . . . Known Exits Taken . | . . . . . Unknown Exits Taken 4 | 1 1 1 1 . Scrap Searched 3 | . . . 3 . Spaces Dug . | . . . . . Terrain Destroyed 11 | . 11 . . . Melee . | . . . . . Projectile . | . . . . . AOE 11 | . 11 . . . Terrain Rammed . | . . . . . Walls Destroyed . | . . . . . Machines Disabled . | . . . . . Actions | -11 -10 -10 -9 -6 --------- Run | Yrd Mat Sub Scr Fac Total 4519 | 40 1022 131 2402 924 Wait 786 | . 403 1 172 210 Move 3478 | 30 549 125 2206 568 Hop . | . . . . . Pick Up 37 | 4 10 . 11 12 Fast Attach 19 | 6 7 . 1 5 Attach 24 | . 4 . 2 18 Detach . | . . . . . Swap 8 | . 1 . 3 4 Drop 16 | . 9 . 7 . Fire 96 | . 39 5 . 52 Melee 54 | . . . . 54 Ram . | . . . . . Kick . | . . . . . Crush 1 | . . . . 1 Escape Stasis . | . . . . . Rewire . | . . . . . Trap . | . . . . . Miscellaneous . | . . . . . Route ------- -11/Scrapyard -10/Materials (discovered 4 exits: [*Mat x2] / [*Min] / [*Sub]) -10/Subcaves (discovered 2 exits: [*Rec] / *Scr) -9/Scraptown (discovered 2 exits: [*Fac x2]) -6/Factory History --------- Turn | Location | Event 16 | -11/Scrapyard | Discovered new exit (range 15) 44 | -11/Scrapyard | Entered Materials 227 | -10/Materials | Discovered new exit (range 8) 319 | -10/Materials | Build established: Mutant 404 | -10/Materials | Discovered new exit (range 12) 495 | -10/Materials | Repaired Com. Wheel 523 | -10/Materials | Repaired Com. Wheel 550 | -10/Materials | Repaired Med. Laser 666 | -10/Materials | Build established: Infiltrator-Mutant 887 | -10/Materials | Discovered new exit (range 16) 1056 | -10/Materials | Discovered new exit (range 9) 1160 | -10/Materials | Entered Subcaves 1161 | -10/Subcaves | Approached by a straggling Scientist 1176 | -10/Subcaves | Learned Materials terminal intel 1253 | -10/Subcaves | Discovered new exit (range 10) 1371 | -10/Subcaves | Scientist uncovered a shortcut to Scraptown 1376 | -10/Subcaves | Entered Scraptown 1376 | -9/Scraptown | System corruption cleaned by C-Scrubber 1810 | -9/Scraptown | Build established: Mutant 2007 | -9/Scraptown | Discovered new exit (range 11) 2171 | -9/Scraptown | Visited Cyclists 2217 | -9/Scraptown | Visited TADAMA 2270 | -9/Scraptown | Visited Symbiants 2331 | -9/Scraptown | Visited Science Testing Area 2660 | -9/Scraptown | Visited Fellowship of the Rings 2705 | -9/Scraptown | Visited UFD Registry 2705 | -9/Scraptown | Registered with UFD as "Nutface" 2767 | -9/Scraptown | Entered Cyclist Reading Room 2911 | -9/Scraptown | Visited Science Guys 2979 | -9/Scraptown | Visited Scrapoid Research Area 3075 | -9/Scraptown | Found Scrap Suit 3146 | -9/Scraptown | Discovered new exit (range 5) 3202 | -9/Scraptown | Visited Cartography Club 3781 | -9/Scraptown | Visited Derelict Rescue Squad 3837 | -9/Scraptown | Visited LU-1G1's Boring Crew 4029 | -9/Scraptown | Visited Scrap Suit Storage 4093 | -9/Scraptown | Visited Chapter 10 4144 | -9/Scraptown | Visited Abandonware Association 4160 | -9/Scraptown | Learned abandonware demo "KABOOM.EXE" 4197 | -9/Scraptown | Visited Infowarlord's Domain 4216 | -9/Scraptown | Found Exp. Sensor Array 4629 | -9/Scraptown | Found DRS Beacon 4696 | -9/Scraptown | Found Scrap Suit 4980 | -9/Scraptown | Met Optimus 4980 | -9/Scraptown | Accepted into 0bPrime 5100 | -9/Scraptown | Entered Factory 5100 | -6/Factory | Evolved 8 slots: Power x2, Propulsion x2, Utility x3, Weapon x1 5603 | -6/Factory | Lost 5 parts (1p2n2u) 5860 | -6/Factory | Lost 3 parts (2n1w) 5880 | -6/Factory | Garrison activated, responded to threat 5937 | -6/Factory | Core integrity fell below 50% 5967 | -6/Factory | Lost 4 parts (3u1w) 6122 | -6/Factory | Core integrity fell below 20% 6166 | -6/Factory | Lost 5 parts (2n1u2w) 6479 | -6/Factory | Lost 6 parts (3n1u2w) 6500 | -6/Factory | Destroyed by exploding Fusion Modulator Last Messages --------------- Destroyed VTOL Module. Com. Wheel destroyed. S-27 Virus destroyed. Scrap Suit secures Autogun. Com. Wheel destroyed. Falx follow-up attack on S-27 Virus. Imp. Light Armor Plating destroyed. S-27 Virus destroyed. Falx destroyed. System corrupted: Component data lost. Scrap Suit secures Hpw. Shock Rifle. S-27 Virus misfires. System corrupted: Heat flow error (+123). Destroyed Lgt. Nuclear Core. ALERT: Cargo convoy en route, clear transfer corridor. Com. Wheel destroyed. Hpw. Shock Rifle destroyed. Y-54 Guardian destroyed. Fusion Modulator explodes. Map ----- +----------------------------------------------------+ | ?????????????????????????????????????????????????? | | ?????????????????????????????????????????????????? | | ?????????????????????????????????????????????????? | | ?????????????????????????????????????????????????? | | ?????????????????????????????????????????????????? | | ?????????????????????????????????????????????????? | | ?????????????????????????????????????????????????? | | ?????????????????????????????????????????????????? | | ?????????????????????????????????????????????????? | | ?????????????????????????????????????????????????? | | ?????????????????????????????????????????????????? | | ?????????????????????????????????????????????????? | | ?????????????????????????????????#???????????????? | | ???????????????????????????????? ?????????????? | | ???????????????????????????????? ?????????????? | | ???????????????????????????????? ?????????????? | | ???????????????????????????????# #?????????????? | | ???????????????????????????????# #?????????????? | | ???????????????????????????????# #?????????????? | | ???????????????????????????????# #?????????????? | | ????????????????????############ #?????????????? | | ????????????????????# ## #?????????????? | | ????????????????????# ## ##????????????? | | ????????????????????# # #???########## | | ????????????????????# # #???# | | ????????????????????# @ # #???# ? | | ????????????????????# =%! + #???# | | ????????????????????# [s! # #???# [ """ " | | ????????????????????# s # #???# """ " | | ????????????????????########### #???# """ " | | ???????????????????????# #???# | | ???????????????????????# ! ##### """ " | | ???????????????????????# %=% / """ " | | ???????????????????????# / ##### """ " | | ???????????????????????# #???# | | ???????????????????????# """ #???# | | ???????????????????????# """"" #???#####+#+## | | ???????????????????????# """"" #???????# | | ???????????????????????# #???????# | | ???????????????????????+ ? """ #???????# | | ???????????????????????# ??"""" #???????# | | ???????????????????????+ ????""" #???????# | | ???????????????????????????????? #???????# | | ????????????????????????????????"" ######### | | ???????????????????????????????""" | | ?????????????????????????????""""" | | ????????????????????????????? | | ???????????????????????????????""" | | ??????????????????????????????"""" | | ???????????????????????????? """"" ####+## | +----------------------------------------------------+ Best States ------------- Heat Dissipation 59 Energy Generation 15 Energy Capacity 250 Matter Stores 300 Matter Capacity 300 Sight Range 16 Robot Scan Range 20 Terrain Scan Range 16 Terrain Scan Density 85 ECM Strength 1 Armor Coverage 150 Evasion (%) 40 Recoil Reduction 4 Item Schematics ----------------- None Robot Schematics ------------------ None Fabricated ------------ Nothing Repaired ---------- Com. Wheel | 30% | -10/Materials Com. Wheel | 66% | -10/Materials Med. Laser | 44% | -10/Materials Studied --------- None Alien Tech Used ----------------- None Achievements -------------- Bob, First Of His Name Botjacking Challenges ------------ None Game ------ Seed NovaZioniteHoverbase Manual? 0 Play Time 01:02:41 Cumulative 9.8 hours Start 2026.08.31 @ 10:47:43 End 2026.08.31 @ 22:20:59 Sessions 3 Manual Loads 0 Difficulty Rogue Special Mode None Game No. 21 Rogue 21 Adventurer 0 Explorer 0 Win Type - Total 0 Types 0/0/0/0/0/0/0/0/0/0 Lore% 23 Gallery% 12 Achievement% 13 Wizard Run 0 Options --------- Layout 1 ASCII 0 Keyboard 0 Movement Mouse Keybinds 0 Fullscreen 2 Font 24/X11 Map View 50x35 Zoom Use 0% Tactical HUD 0 Map Filters NONE Filters NONE Steam 1 RUN: ea721c87-6f4a-46b6-86d5-c4434698f2f7